bitfinex/quotes_ETHUSD_20250604
["timestamp","ask_amount","ask_price","bid_price","bid_amount"]
[1749076081978,0.2,2602.2,2602.1,4.261799]
[1749076082378,0.2,2602.2,2602.1,1.644]
[1749076082609,0.2,2602.2,2601.9,0.62792601]
[1749076082905,0.2,2602.2,2602.1,1.644]
[1749076083302,0.2,2602.2,2602.1,3.829218]
[1749076083879,0.2,2602.3,2602.2,10.0]
[1749076084708,0.2,2602.5,2602.2,10.0]
[1749076084919,0.2,2602.5,2602.1,1.644]
[1749076084920,0.2,2602.6,2602.4,10.0]
[1749076085121,0.2,2602.6,2602.2,0.38428305]
[1749076085324,0.2,2602.6,2602.2,23.095749]
[1749076085623,0.2,2602.6,2602.3,14.20248]
[1749076086322,0.2,2602.6,2602.2,24.876455]
[1749076086622,0.2,2602.6,2602.2,8.798691]
[1749076087121,0.2,2602.6,2602.5,0.38424591]
[1749076087328,0.2,2602.6,2602.4,23.320344]
[1749076087511,0.2,2602.6,2602.5,18.87327791]
[1749076088033,0.2,2602.6,2602.5,18.489032]
[1749076088185,0.02,2602.9,2602.8,16.94000162]
[1749076088388,0.22,2602.9,2602.8,32.7798]
[1749076088590,0.22,2602.9,2602.8,32.447087]
[1749076088823,0.02,2602.9,2602.8,32.447087]
[1749076089003,0.22,2602.9,2602.8,21.773392]
[1749076089192,0.22,2602.9,2602.8,9.928]
[1749076089732,0.22,2602.9,2602.8,16.224]
[1749076089931,0.22,2602.9,2602.8,9.928]
[1749076090116,0.22,2602.9,2602.8,16.224]
[1749076090425,1.09261371,2602.9,2602.8,16.224]
[1749076095452,0.22,2602.9,2602.8,16.224]
[1749076095625,0.22,2602.9,2602.8,18.65819]
[1749076095939,0.02,2602.9,2602.8,19.04239162]
[1749076103622,0.2,2603.5,2603.2,25.023926]
[1749076103822,0.2,2603.5,2603.2,23.888088]
[1749076104256,0.2,2603.2,2603.1,28.844088]
[1749076104441,0.2,2603.2,2603.0,9.955877]
[1749076104821,0.2,2603.4,2603.0,10.3400447]
[1749076105073,7.0093371,2603.7,2603.1,21.99983083]
[1749076105252,0.2,2603.5,2603.2,22.735409]
[1749076105451,0.2,2603.5,2603.1,23.216546]
[1749076105651,0.2,2603.5,2603.1,21.099946]
[1749076105967,0.2,2603.5,2602.9,30.0]
[1749076106951,0.2,2603.5,2603.1,30.467827]
[1749076107126,0.2,2603.5,2603.2,19.98669]
[1749076107662,7.0093371,2603.7,2603.1,20.414322]
[1749076107864,0.2,2603.2,2603.1,20.414322]
[1749076108024,0.2,2603.2,2603.0,21.562928]
[1749076108224,0.2,2603.2,2603.0,11.562928]
[1749076108444,0.2,2603.2,2603.1,7.862122]
[1749076108666,7.0093371,2603.7,2603.0,23.400505]
[1749076108860,0.2,2603.3,2603.2,23.689919]
[1749076109051,0.2,2603.3,2603.1,17.238406]
[1749076109572,0.2,2603.6,2603.3,24.095104]
[1749076109861,0.2,2603.6,2603.4,1.643]
[1749076110025,0.2,2603.6,2603.5,7.936]
[1749076111245,3.56898175,2603.6,2603.5,7.936]
[1749076112088,3.56898175,2603.6,2603.0,0.38416565]
[1749076112089,5.04908175,2603.6,2603.0,0.38416565]
[1749076112240,3.36898175,2603.3,2603.1,7.936]
[1749076112444,0.2,2603.2,2603.1,1.643]
[1749076112666,0.2,2603.2,2603.1,13.7453]
[1749076113967,0.2,2603.2,2603.1,12.552094]
[1749076114166,0.2,2603.2,2603.1,11.734296]
[1749076114886,3.36898175,2603.3,2603.1,11.734296]
[1749076115048,0.2,2603.2,2603.1,11.734296]
[1749076115235,0.2,2603.2,2603.1,20.015296]
[1749076115735,0.2,2603.2,2603.1,18.307296]
[1749076115935,0.2,2603.2,2603.1,12.014296]
[1749076116235,0.2,2603.2,2603.1,16.217]
[1749076116451,0.2,2603.2,2603.1,18.359801]
[1749076116650,0.2,2603.2,2603.1,16.217]
[1749076117047,0.2,2603.2,2603.1,9.924]
[1749076117345,0.2,2603.2,2603.1,16.217]
[1749076118227,0.55689818,2603.2,2603.1,9.924]
[1749076118473,2.00589818,2603.2,2603.1,16.217]
[1749076120881,2.00589818,2603.2,2603.1,9.924]
[1749076121082,2.00589818,2603.2,2603.1,16.217]
[1749076121279,2.55589818,2603.2,2603.1,8.281]
[1749076121484,2.55589818,2603.2,2603.1,16.217]
[1749076121916,2.55589818,2603.2,2603.1,9.924]
[1749076122101,2.55589818,2603.2,2603.1,16.217]
[1749076122102,5.92487993,2603.2,2603.1,16.217]
[1749076122305,2.55589818,2603.2,2603.1,16.217]
[1749076123322,5.92487993,2603.2,2603.1,16.217]
[1749076125037,2.55589818,2603.2,2603.1,16.217]
[1749076125507,2.55589818,2603.2,2603.1,8.281]
[1749076125714,2.55589818,2603.2,2603.1,16.217]
[1749076126841,2.00589818,2603.2,2603.1,16.217]
[1749076127135,5.56798175,2603.2,2603.1,16.217]
[1749076128834,1.999,2603.2,2603.1,16.217]
[1749076129002,3.56898175,2603.2,2603.1,16.217]
[1749076139845,0.2,2603.2,2603.1,16.217]
[1749076140025,3.56898175,2603.2,2603.1,16.217]
[1749076140847,0.2,2603.2,2603.1,16.217]
[1749076142847,0.2,2603.2,2603.1,8.281]
[1749076143074,3.56898175,2603.2,2603.1,16.217]
[1749076145657,3.56898175,2603.2,2603.1,8.281]
[1749076145953,5.34327993,2603.2,2603.1,16.217]
[1749076146852,3.92587993,2603.2,2603.1,16.217]
[1749076147065,3.56898175,2603.2,2603.1,16.217]
[1749076147531,0.2,2603.2,2603.1,16.217]
[1749076147725,3.56898175,2603.2,2603.1,16.217]
[1749076150858,0.2,2603.2,2603.1,16.217]
[1749076151240,0.2,2603.2,2603.1,18.894]
[1749076151574,0.2,2603.2,2603.1,16.217]
[1749076153674,0.2,2603.2,2603.1,9.925]
[1749076154780,0.2,2603.2,2603.1,16.217]
[1749076154951,0.2,2603.2,2603.1,30.764751]
[1749076155153,0.2,2603.2,2603.1,25.652434]
[1749076155680,0.2,2603.2,2603.1,24.323134]
[1749076156295,3.36898175,2603.4,2603.1,24.323134]
[1749076156500,0.2,2603.2,2603.1,24.323134]
[1749076157273,0.2,2603.4,2603.2,20.831418]
[1749076157473,0.2,2603.4,2603.2,18.697278]
[1749076157679,0.2,2603.4,2603.2,14.845012]
[1749076159374,0.2,2603.4,2603.2,11.569308]
[1749076160027,0.2,2603.2,2603.1,26.973975]
[1749076160214,0.2,2603.2,2603.1,24.92763]
[1749076161878,0.2,2603.2,2603.1,9.925]
[1749076162127,3.56898175,2603.2,2603.1,16.216]
[1749076164917,3.56898175,2603.2,2603.1,18.376935]
[1749076166147,0.2,2603.2,2603.1,18.376935]
[1749076166648,0.2,2603.2,2603.1,16.216]
[1749076167563,3.36898175,2603.2,2603.1,16.216]
[1749076167850,3.70587993,2603.2,2603.1,16.216]
[1749076169365,3.36898175,2603.2,2603.1,16.216]
[1749076169767,3.36898175,2603.2,2603.1,1.641]
[1749076170628,1.3577,2603.6,2603.1,6.354796]
[1749076170834,3.36898175,2603.4,2603.3,1.18297498]
[1749076171030,3.36898175,2603.4,2603.3,10.3533]
[1749076171668,3.36898175,2603.4,2603.3,8.8443]
[1749076171875,3.36898175,2603.4,2603.3,6.291]
[1749076172263,3.36898175,2603.4,2603.3,8.55]
[1749076172462,3.36898175,2603.4,2603.3,6.291]
[1749076172665,3.36898175,2603.4,2603.3,16.291]
[1749076172974,3.84164993,2603.4,2603.3,6.291]
[1749076174279,3.36898175,2603.4,2603.3,6.291]
[1749076176878,3.36898175,2603.6,2603.3,6.291]
[1749076177469,3.36898175,2603.6,2603.4,8.281]
[1749076178841,0.02,2603.9,2603.4,8.281]
[1749076179041,3.36898175,2603.8,2603.4,8.281]
[1749076179467,3.36898175,2603.8,2603.5,16.0]
[1749076181349,3.36898175,2603.7,2603.5,16.0]
[1749076184484,3.36898175,2603.7,2603.6,1.641]
[1749076186759,3.36898175,2603.7,2603.6,23.93]
[1749076190157,3.36898175,2603.7,2603.6,17.641]
[1749076190360,4.39979992,2603.7,2603.6,17.641]
[1749076190887,5.78519992,2603.7,2603.6,23.929]
[1749076192158,5.78519992,2603.7,2603.6,17.641]
[1749076192357,5.78519992,2603.7,2603.6,23.929]
[1749076193000,5.30438175,2603.7,2603.6,23.929]
[1749076196890,5.30438175,2603.7,2603.6,32.209]
[1749076200419,0.02,2603.9,2603.7,16.0]
[1749076200719,3.91898175,2603.8,2603.7,16.0]
[1749076200887,1.977,2603.7,2603.6,9.921]
[1749076201083,2.37089818,2603.7,2603.6,16.208]
[1749076202022,1.5063,2603.6,2601.7,0.96880457]
[1749076202223,0.94389818,2603.7,2602.2,2.565233]
[1749076202224,3.36898175,2602.5,2602.2,2.565233]
[1749076202517,2.74587036,2602.5,2602.0,12.83342354]
[1749076202723,2.74587036,2602.5,2602.3,6.287]
[1749076202923,2.74587036,2602.5,2602.4,1.64]
[1749076203480,2.74587036,2602.5,2602.4,7.928]
[1749076203832,2.74587036,2602.5,2602.4,7.927]
[1749076204327,2.74587036,2602.5,2602.4,1.64]
[1749076204621,2.74587036,2602.5,2602.4,23.927]
[1749076204992,4.88898175,2602.9,2602.4,7.927]
[1749076205212,4.88898175,2602.9,2602.5,26.0]
[1749076205412,4.88898175,2602.9,2602.5,16.0]
[1749076206000,3.36898175,2602.7,2602.5,16.0]
[1749076206395,3.36898175,2602.7,2601.8,8.28]
[1749076206597,3.36898175,2602.1,2601.8,8.28]
[1749076206938,3.36898175,2602.1,2601.9,7.928]
[1749076207136,3.36898175,2602.1,2602.0,16.0]
[1749076207342,3.36898175,2602.1,2601.9,7.928]
[1749076207539,3.36898175,2602.1,2601.9,17.64]
[1749076207706,3.36898175,2602.1,2602.0,6.288]
[1749076208209,3.36898175,2602.1,2601.9,16.0]
[1749076208413,5.64007993,2602.1,2602.0,1.64]
[1749076208611,5.64007993,2602.1,2602.0,7.928]
[1749076209225,5.30318175,2602.1,2602.0,7.928]
[1749076210003,3.36898175,2602.2,2602.0,7.928]
[1749076210343,0.55,2602.1,2601.9,16.0]
[1749076210502,5.37948175,2602.0,2601.9,16.0]
[1749076210704,3.36898175,2602.0,2601.9,23.928]
[1749076211008,1.4605,2602.5,2602.0,2.7459]
[1749076211212,3.36898175,2602.9,2602.2,10.0]
[1749076211406,3.36898175,2603.1,2602.3,10.76852954]
[1749076211607,3.36898175,2603.1,2602.5,18.30316]
[1749076211809,3.36898175,2603.1,2602.8,10.0]
[1749076212217,3.36898175,2602.9,2602.8,10.0]
[1749076212841,3.36898175,2602.9,2602.7,3.210881]
[1749076213044,1.4605,2603.2,2602.8,10.0]
[1749076213370,3.36898175,2603.2,2602.7,22.539999]
[1749076213566,3.36898175,2603.2,2602.7,12.539999]
[1749076214256,3.36898175,2603.2,2602.7,10.640999]
[1749076215430,3.36898175,2603.2,2602.8,16.0]
[1749076215631,3.36898175,2603.2,2602.8,8.79448]
[1749076215872,3.36898175,2603.2,2603.0,16.0]
[1749076216038,3.36898175,2603.2,2603.1,24.283]
[1749076216417,3.91898175,2603.2,2603.1,24.283]
[1749076216543,5.39298175,2603.2,2603.1,30.572]
[1749076218966,5.39298175,2603.2,2603.1,30.571]
[1749076219331,5.39298175,2603.2,2603.1,9.923]
[1749076219549,5.93227993,2603.2,2603.1,16.211]
[1749076219755,5.93227993,2603.2,2603.1,9.923]
[1749076219952,5.93227993,2603.2,2603.1,16.211]
[1749076222448,5.39298175,2603.2,2603.1,16.211]
[1749076222788,3.36898175,2603.2,2603.1,32.211]
[1749076223084,3.36898175,2603.4,2603.1,15.206815]
[1749076223387,3.36898175,2603.7,2603.2,10.076802]
[1749076223583,3.36898175,2603.5,2603.3,10.0]
[1749076223752,3.36898175,2603.5,2603.2,15.332403]
[1749076223952,3.36898175,2603.5,2603.3,10.0]
[1749076224285,3.36898175,2603.7,2603.5,4.708866]
[1749076224493,3.36898175,2603.7,2603.6,10.0]
[1749076224698,3.36898175,2603.7,2603.5,5.390066]
[1749076224859,0.02,2603.9,2603.5,5.390066]
[1749076225063,3.36898175,2603.8,2603.7,10.0]
[1749076225263,3.36898175,2603.8,2603.7,1.64]
[1749076228094,0.02,2603.9,2603.7,1.64]
[1749076228497,0.02,2603.9,2603.8,26.44994414]
[1749076228993,0.02,2603.9,2603.8,24.152193]
[1749076229192,0.02,2603.9,2603.8,24.92030114]
[1749076229497,0.00022194,2603.9,2603.8,24.92030114]
[1749076230579,0.00022194,2603.9,2603.8,24.152193]
[1749076230765,0.00022194,2603.9,2603.8,31.51330714]
[1749076237459,0.00022194,2603.9,2603.8,39.79230714]
[1749076240096,0.00022194,2603.9,2603.8,31.51330714]
[1749076240276,0.022,2604.9,2604.5,0.76787789]
[1749076240608,0.022,2604.9,2604.8,16.0]
[1749076240795,0.022,2604.9,2604.8,49.851797]
[1749076241113,0.022,2604.9,2604.8,50.61961026]
[1749076241278,0.022,2604.9,2604.8,49.851797]
[1749076241605,0.022,2604.9,2604.8,31.19257]
[1749076241769,0.022,2604.9,2604.8,12.626298]
[1749076242108,0.022,2604.9,2604.8,11.584859]
[1749076242266,0.022,2604.9,2604.8,8.741]
[1749076244579,0.022,2604.9,2604.8,24.741]
[1749076245467,0.022,2604.9,2604.8,22.284]
[1749076245900,0.022,2604.9,2604.8,25.063394]
[1749076246925,0.022,2604.9,2604.8,24.419394]
[1749076247526,0.022,2604.9,2604.8,34.333394]
[1749076247924,0.022,2604.9,2604.8,32.196]
[1749076248214,0.022,2604.9,2604.8,37.094406]
[1749076248997,0.022,2604.9,2604.8,25.914]
[1749076249218,0.022,2604.9,2604.8,32.196]
[1749076249368,7.02530135,2604.9,2604.8,25.914]
[1749076249573,7.86573149,2604.9,2604.8,32.196]
[1749076251397,7.86573149,2604.9,2604.8,24.276]
[1749076251711,7.86573149,2604.9,2604.8,32.195]
[1749076252009,7.86573149,2604.9,2604.8,16.195]
[1749076253096,7.02530135,2604.9,2604.8,44.384041]
[1749076253304,3.38770733,2604.9,2604.8,32.195]
[1749076254503,3.38770733,2604.9,2604.8,35.516768]
[1749076255016,0.022,2604.9,2604.8,35.516768]
[1749076255377,0.022,2604.9,2604.8,25.914]
[1749076255583,0.022,2604.9,2604.8,24.276]
[1749076255917,1.4903,2604.9,2604.8,32.195]
[1749076256610,1.97590073,2604.9,2604.8,32.195]
[1749076260623,1.97590073,2604.9,2604.8,25.914]
[1749076260821,1.97590073,2604.9,2604.8,32.195]
[1749076263064,0.022,2604.9,2604.8,32.195]
[1749076263262,0.022,2604.9,2604.8,36.76551]
[1749076263845,0.022,2604.9,2604.8,37.53332326]
[1749076264136,0.00060795,2604.9,2604.8,37.53332326]
[1749076264355,0.00060795,2604.9,2604.8,36.76551]
[1749076265027,0.00060795,2604.9,2604.8,32.195]
[1749076265261,0.00060795,2604.9,2604.8,26.662]
[1749076265423,0.00060795,2604.9,2604.8,34.639694]
[1749076266946,0.00060795,2604.9,2604.8,35.40750726]
[1749076267872,0.00060795,2604.9,2604.8,19.88792899]
[1749076268163,0.00060795,2604.9,2604.8,27.39611573]
[1749076269548,0.00060795,2604.9,2604.8,28.16392899]
[1749076269751,0.00060795,2604.9,2604.8,27.39611573]
[1749076269953,0.00060795,2604.9,2604.8,28.16392899]
[1749076272455,0.00060795,2604.9,2604.8,19.88792899]
[1749076272823,0.00060795,2604.9,2604.8,19.12011573]
[1749076273021,0.00060795,2604.9,2604.8,19.88792899]
[1749076273958,3.36570733,2605.4,2604.9,14.350099]
[1749076274160,3.36570733,2605.4,2604.9,12.900099]
[1749076275751,3.36570733,2605.4,2604.9,10.372099]
[1749076276927,3.36570733,2605.4,2604.9,11.13987573]
[1749076277127,3.36570733,2605.4,2605.0,12.698584]
[1749076277333,3.36570733,2605.4,2605.0,10.796899]
[1749076277524,1.5,2605.7,2605.2,3.580959]
[1749076277863,4.75280733,2606.0,2605.5,10.0]
[1749076278022,4.75280733,2606.0,2605.7,20.258293]
[1749076278228,4.76970733,2606.3,2605.7,20.258293]
[1749076278487,3.36570733,2606.1,2605.7,20.258293]
[1749076278631,1.404,2605.8,2605.3,10.0]
[1749076278972,1.404,2605.8,2605.4,7.916]
[1749076279141,1.404,2605.8,2605.4,1.637]
[1749076279346,1.404,2605.8,2605.5,6.279]
[1749076280052,3.36570733,2605.6,2605.4,1.637]
[1749076280252,1.74057073,2605.5,2605.4,1.637]
[1749076280452,0.55,2605.4,2605.1,8.274]
[1749076280651,1.954,2605.3,2605.2,7.916]
[1749076280853,2.23805707,2605.3,2605.2,7.916]
[1749076281730,9.23854077,2605.3,2605.2,7.916]
[1749076283169,9.23854077,2605.3,2605.2,7.915]
[1749076284667,8.68854077,2605.3,2605.2,7.915]
[1749076284868,8.4044837,2605.3,2605.2,7.915]
[1749076287541,8.4044837,2605.3,2605.2,16.19]
[1749076288170,1.404,2605.3,2605.2,16.19]
[1749076288374,0.02,2605.9,2605.2,26.42764]
[1749076288375,1.4354,2605.6,2605.2,26.42764]
[1749076288563,1.4354,2605.6,2605.4,10.0]
[1749076288768,8.4358837,2605.6,2605.4,10.0]
[1749076289086,0.84358837,2605.5,2605.4,10.0]
[1749076289260,8.4358837,2605.6,2605.4,10.0]
[1749076289465,8.4358837,2605.6,2605.3,10.0]
[1749076289847,8.4358837,2605.6,2605.4,10.0]
[1749076290253,8.4358837,2605.6,2605.5,7.916]
[1749076290839,8.4358837,2605.6,2605.4,10.0]
[1749076291043,8.4358837,2605.6,2605.5,7.915]
[1749076292478,7.0004837,2605.6,2605.5,7.915]
[1749076292776,1.5106,2605.7,2605.5,7.915]
[1749076292977,8.5310837,2605.9,2605.7,10.0]
[1749076293182,9.28813207,2605.9,2605.6,5.00742]
[1749076293367,9.28813207,2605.9,2605.5,7.915]
[1749076293571,9.28813207,2605.9,2605.7,10.0]
[1749076293747,9.28813207,2605.9,2605.5,7.915]
[1749076293949,1.5306,2605.9,2605.6,3.239934]
[1749076294151,1.5306,2605.9,2605.7,10.0]
[1749076294371,1.5306,2605.9,2605.5,7.915]
[1749076296451,1.5306,2605.9,2605.6,2.362934]
[1749076296652,1.5306,2605.9,2605.7,10.0]
[1749076296878,1.5306,2605.9,2605.6,2.362934]
[1749076297077,1.5306,2605.9,2605.7,10.0]
[1749076297274,1.5306,2605.9,2605.8,6.278]
[1749076298179,0.02,2605.9,2605.8,18.582027]
[1749076298493,0.02,2605.9,2605.8,11.395272]
[1749076299497,7.0204837,2605.9,2605.3,3.436277]
[1749076299697,1.4606,2605.7,2605.4,1.636]
[1749076299896,7.0004837,2605.6,2605.4,7.914]
[1749076300607,7.0004837,2605.6,2605.2,8.275]
[1749076300794,0.55,2605.6,2605.5,1.636]
[1749076300970,7.5504837,2605.6,2605.5,7.914]
[1749076301169,9.76613207,2605.6,2605.5,7.914]
[1749076303103,9.76613207,2605.6,2605.5,1.636]
[1749076304311,9.76613207,2605.6,2605.5,7.913]
[1749076305318,0.55,2605.3,2604.0,0.35517797]
[1749076305518,7.0004837,2604.9,2604.4,9.086843]
[1749076305905,7.0004837,2604.9,2604.6,10.0]
[1749076306123,7.0004837,2604.9,2604.7,1.636]
[1749076306715,9.0198837,2604.9,2604.8,1.636]
[1749076306925,9.0198837,2604.9,2604.8,7.914]
[1749076307479,9.0198837,2604.9,2604.8,16.189]
[1749076307708,9.92187207,2604.9,2604.8,9.911]
[1749076307915,9.92187207,2604.9,2604.8,16.189]
[1749076311545,9.92187207,2604.9,2604.8,9.911]
[1749076311690,9.92187207,2604.9,2604.8,16.189]
[1749076312315,9.92187207,2604.9,2603.1,0.02]
[1749076312316,1.9355,2604.8,2603.4,0.76821226]
[1749076312638,7.0004837,2604.1,2603.6,2.320522]
[1749076312781,7.0004837,2604.1,2603.7,6.278]
[1749076314086,8.4737837,2604.4,2603.8,2.691524]
[1749076314319,7.0004837,2604.0,2603.6,10.0]
[1749076314522,7.0004837,2604.0,2603.5,1.636]
[1749076314687,7.0004837,2604.0,2603.7,6.279]
[1749076315099,0.55,2603.8,2603.2,10.0]
[1749076315283,0.55,2603.6,2603.3,7.915]
[1749076315488,1.518,2603.5,2603.3,7.915]
[1749076316097,1.518,2603.5,2603.4,6.279]
[1749076316431,1.518,2603.5,2603.4,7.915]
[1749076317249,1.518,2603.5,2603.4,1.636]
[1749076317250,2.97484837,2603.5,2603.4,1.636]
[1749076317386,2.97484837,2603.5,2603.4,16.195]
[1749076319501,2.97484837,2603.5,2603.4,16.193]
[1749076320207,2.97484837,2603.5,2603.4,9.913]
[1749076320402,2.97484837,2603.5,2603.4,16.194]
[1749076321043,1.518,2603.5,2603.4,16.194]
[1749076321249,8.4271837,2603.7,2603.4,16.194]
[1749076321692,0.55,2603.6,2603.4,16.194]
[1749076322320,7.0004837,2603.7,2603.4,16.194]
[1749076322989,0.55,2603.6,2603.4,16.194]
[1749076323190,2.0006,2603.5,2603.4,16.194]
[1749076323811,2.0006,2603.5,2603.4,8.277]
[1749076324039,2.0006,2603.5,2603.4,16.195]
[1749076324640,2.0006,2603.5,2603.4,9.913]
[1749076324799,2.0006,2603.5,2603.4,16.195]
[1749076324999,2.97621321,2603.5,2603.4,9.913]
[1749076325230,2.97621321,2603.5,2603.4,16.194]
[1749076326117,2.97621321,2603.5,2603.4,16.195]
[1749076327116,0.55,2603.5,2603.4,16.195]
[1749076328344,0.55,2603.5,2603.4,8.277]
[1749076328520,1.9905,2603.5,2603.4,16.196]
[1749076328720,1.9905,2603.5,2603.4,9.914]
[1749076328944,1.9905,2603.5,2603.4,16.196]
[1749076329251,2.88959837,2603.5,2603.4,16.196]
[1749076332760,0.55,2603.5,2603.4,16.196]
[1749076333483,0.55,2603.5,2603.4,9.914]
[1749076333650,0.55,2603.5,2603.4,16.196]
[1749076334372,1.431,2603.8,2603.4,16.196]
[1749076334576,7.0004837,2603.9,2603.4,16.196]
[1749076334889,7.0004837,2603.6,2603.4,16.196]
[1749076335050,2.0131,2603.5,2603.4,8.277]
[1749076335240,2.0131,2603.5,2603.4,16.197]
[1749076335647,2.0131,2603.5,2603.4,8.277]
[1749076335836,2.91445837,2603.5,2603.4,16.197]
[1749076336849,2.91445837,2603.5,2603.4,9.914]
[1749076337079,2.91445837,2603.5,2603.4,16.197]
[1749076340683,1.45135837,2603.5,2603.4,16.197]
[1749076341201,4.82135642,2603.5,2603.4,16.197]
[1749076342393,4.82135642,2603.5,2603.4,1.637]
[1749076342394,1.45135837,2603.5,2603.4,1.637]
[1749076342705,3.91999805,2603.5,2603.4,1.637]
[1749076343211,3.36999805,2603.6,2603.4,4.726867]
[1749076343513,3.36999805,2603.6,2603.5,9.295241]
[1749076343670,3.36999805,2604.0,2603.6,14.677092]
[1749076343868,3.36999805,2604.2,2603.7,25.68090721]
[1749076344242,3.36999805,2604.2,2603.5,6.283]
[1749076344243,3.36999805,2604.2,2603.8,16.082357]
[1749076344395,3.36999805,2604.2,2603.7,21.147727]
[1749076344704,3.36999805,2604.3,2603.7,0.76813439]
[1749076344895,0.02,2603.9,2603.8,17.02755273]
[1749076345498,0.02,2603.9,2603.8,16.259471]
[1749076345713,0.02,2603.9,2603.8,26.239471]
[1749076345871,0.02,2603.9,2603.8,16.239471]
[1749076346073,0.02,2603.9,2603.6,26.15969695]
[1749076346286,0.02,2603.9,2603.7,23.27354876]
[1749076346485,0.02,2603.9,2603.8,16.239471]
[1749076346674,0.02,2603.9,2603.8,26.239471]
[1749076346888,0.02,2603.9,2603.8,32.239471]
[1749076347290,0.02,2603.9,2603.8,26.543898]
[1749076347498,0.02,2603.9,2603.8,34.824898]
[1749076347806,0.02,2603.9,2603.8,35.59300614]
[1749076348023,0.02,2603.9,2603.8,34.824898]
[1749076352316,0.02,2603.9,2603.8,28.542898]
[1749076352618,0.02,2603.9,2603.8,32.825492]
[1749076354401,0.02,2603.9,2603.8,30.562]
[1749076355704,0.02,2603.9,2603.8,25.917]
[1749076356020,8.99449976,2603.9,2603.8,32.198]
[1749076356218,9.89394974,2603.9,2603.8,16.198]
[1749076356726,2.33994998,2603.9,2603.8,16.198]
[1749076356913,0.02,2603.9,2603.8,32.198]
[1749076360401,0.02,2603.9,2603.8,25.917]
[1749076360606,0.02,2603.9,2603.8,32.198]
[1749076366315,0.02,2603.9,2603.8,8.281]
[1749076366522,1.9503,2603.9,2603.8,9.917]
[1749076366756,2.84572998,2603.9,2603.8,16.197]
[1749076367362,6.21592497,2603.9,2603.8,16.197]
[1749076367538,4.83562497,2603.9,2601.8,3.37019499]
[1749076367745,4.83562497,2603.9,2602.4,9.61977]
[1749076367746,3.37019499,2602.9,2602.4,9.61977]
[1749076368069,3.37019499,2602.9,2602.8,21.033106]
[1749076368278,3.37019499,2602.9,2602.8,18.936106]
[1749076368571,3.37019499,2602.9,2602.8,2.648106]
[1749076368719,3.37019499,2602.9,2602.8,8.928106]
[1749076368915,3.37019499,2602.9,2602.8,24.928106]
[1749076369347,3.37019499,2602.9,2602.0,0.76862067]
[1749076369561,3.37019499,2602.7,2602.2,16.76857447]
[1749076369743,3.37019499,2602.7,2602.1,0.76859366]
[1749076369947,3.37019499,2602.7,2602.4,16.0]
[1749076370131,3.37019499,2602.9,2602.3,16.0]
[1749076370451,3.37019499,2602.9,2602.6,16.0]
[1749076370653,3.37019499,2602.9,2602.4,6.22543]
[1749076370861,3.37019499,2602.9,2602.6,16.0]
[1749076371068,3.37019499,2602.9,2602.4,13.409339]
[1749076371267,3.37019499,2602.9,2602.5,0.76847717]
[1749076371571,3.37019499,2603.5,2603.1,16.0]
[1749076371853,3.37019499,2603.5,2603.3,16.0]
[1749076372362,4.80569499,2603.7,2603.3,16.0]
[1749076372559,4.80569499,2603.7,2603.2,6.281]
[1749076373456,1.4355,2603.7,2603.2,6.281]
[1749076374461,1.4355,2603.7,2603.3,16.0]
[1749076377534,7.00774649,2603.8,2603.4,9.917]
[1749076377731,1.466,2603.9,2603.4,9.917]
[1749076377963,0.02,2603.9,2603.4,9.917]
[1749076378684,0.02,2603.9,2603.5,16.0]
[1749076378892,0.02,2603.9,2603.5,32.647759]
[1749076379030,0.02,2603.9,2603.7,5.572759]
[1749076379383,0.02,2603.9,2603.5,16.0]
[1749076381371,0.02,2603.9,2603.7,10.0]
[1749076381571,0.02,2603.9,2603.5,16.0]
[1749076383451,1.4153,2603.9,2603.5,16.0]
[1749076384235,0.02,2603.9,2603.5,8.02824989]
[1749076384435,0.02,2603.9,2603.6,14.380737]
[1749076384640,0.02,2603.9,2603.6,10.865957]
[1749076387493,4.588e-05,2603.9,2603.6,10.865957]
[1749076387779,4.588e-05,2603.9,2603.8,30.03463214]
[1749076391178,4.588e-05,2603.9,2603.8,36.31463214]
[1749076392584,4.588e-05,2603.9,2603.8,24.500485]
[1749076392768,4.588e-05,2603.9,2603.8,7.915]
[1749076393298,4.588e-05,2603.9,2603.8,11.58769929]
[1749076393448,4.588e-05,2603.9,2603.8,11.90073614]
[1749076394075,4.588e-05,2603.9,2603.8,11.132628]
[1749076394577,4.588e-05,2603.9,2603.8,10.3031]
[1749076394756,4.588e-05,2603.9,2603.8,11.07120814]
[1749076394952,4.588e-05,2603.9,2603.8,10.3031]
[1749076395168,4.588e-05,2603.9,2603.8,3.15620814]
[1749076395369,4.588e-05,2603.9,2603.8,11.07120814]
[1749076398173,1.5258,2604.9,2604.5,10.870205]
[1749076398477,1.5258,2604.9,2604.6,7.915]
[1749076398655,2.01510042,2604.9,2604.7,8.278]
[1749076400203,0.02,2604.9,2604.8,21.83754726]
[1749076405321,0.02,2604.9,2604.8,21.86414726]
[1749076405529,0.02,2604.9,2604.8,5.810573]
[1749076405817,0.02,2604.9,2604.8,14.49438626]
[1749076406211,0.02,2604.9,2604.8,13.726573]